bitfinex/quotes_ETHUSD_20251011
["timestamp","ask_amount","ask_price","bid_price","bid_amount"]
[1760210665215,20.68902009,3763.2,3761.1,0.002]
[1760210665216,2.6578073,3762.5,3761.1,0.002]
[1760210665534,2.65808197,3762.2,3761.2,2.65872593]
[1760210665821,0.4509,3762.1,3761.2,2.65872593]
[1760210666002,2.65823121,3761.9,3761.1,0.002]
[1760210666174,1.2479,3762.0,3761.1,2.66078147]
[1760210666521,2.65844163,3761.7,3761.1,0.002]
[1760210666721,2.65850403,3761.6,3761.1,0.002]
[1760210666929,3.10940403,3761.6,3761.1,0.002]
[1760210667129,2.65872593,3761.2,3761.1,0.002]
[1760210667339,20.68902009,3761.4,3761.1,0.002]
[1760210667501,2.65848448,3761.6,3761.1,0.002]
[1760210667502,0.4509,3761.6,3761.1,0.002]
[1760210667836,0.2152,3761.9,3761.1,0.002]
[1760210667989,0.2152,3761.9,3761.2,2.65870362]
[1760210668187,0.2152,3761.9,3761.1,2.6607563]
[1760210668610,2.8734351,3761.9,3761.1,0.002]
[1760210668815,0.2152,3761.9,3761.1,0.002]
[1760210669036,0.2152,3761.9,3761.2,2.65866282]
[1760210669455,0.797,3762.0,3761.3,0.02658655]
[1760210669658,0.797,3762.0,3761.5,2.6585095]
[1760210669813,0.797,3762.0,3761.9,2.65823121]
[1760210670014,0.797,3762.0,3761.9,2.68481352]
[1760210670653,0.797,3762.0,3761.5,2.65846227]
[1760210670810,0.797,3762.0,3761.6,0.02658443]
[1760210671010,0.9298,3762.0,3761.9,2.65823121]
[1760210671249,0.9298,3762.0,3761.2,0.1328]
[1760210671557,0.9298,3762.0,3761.8,2.65829895]
[1760210671558,0.797,3762.0,3761.8,2.65829895]
[1760210671716,0.797,3762.0,3761.9,2.65823121]
[1760210671915,0.9298,3762.0,3761.9,2.92671277]
[1760210672254,0.797,3762.0,3761.9,3.35651277]
[1760210672423,0.797,3762.0,3761.9,3.48931277]
[1760210672830,0.1328,3762.7,3762.6,2.65773667]
[1760210673066,0.798,3763.0,3762.9,2.65752478]
[1760210673653,0.798,3763.0,3762.5,0.1328]
[1760210673856,0.798,3763.0,3762.7,2.65766146]
[1760210674044,0.798,3763.0,3762.9,2.65752478]
[1760210674362,0.798,3763.0,3762.0,0.1328]
[1760210674363,0.1328,3762.7,3762.6,2.65773272]
[1760210674514,0.798,3763.0,3762.9,2.65752478]
[1760210675352,0.798,3763.0,3762.7,2.65760046]
[1760210675555,1.2379,3763.0,3762.7,2.65760046]
[1760210675753,0.798,3763.0,3762.8,2.65758915]
[1760210676044,0.798,3763.0,3761.9,0.26848156]
[1760210676045,0.4399,3762.9,3762.4,2.65781623]
[1760210676264,0.798,3763.0,3762.4,0.26578162]
[1760210676416,0.798,3763.0,3762.9,2.65752478]
[1760210679073,0.798,3763.0,3761.9,0.4298]
[1760210679074,2.65752478,3762.9,3761.8,2.65823994]
[1760210679273,2.65752478,3762.9,3761.5,2.65845568]
[1760210679274,0.798,3763.0,3762.9,0.002]
[1760210679436,3.45546872,3763.0,3762.9,0.002]
[1760210679636,0.798,3763.0,3762.9,0.002]
[1760210679841,3.89535415,3763.0,3762.9,0.002]
[1760210681252,1.2379,3763.0,3762.9,0.002]
[1760210681547,1.2379,3763.0,3762.9,2.65952478]
[1760210681548,0.798,3763.0,3762.9,2.65952478]
[1760210681745,0.798,3763.0,3762.9,0.002]
[1760210682273,0.798,3763.0,3762.9,2.65952478]
[1760210682576,0.798,3763.0,3762.9,3.19389936]
[1760210682774,0.798,3763.0,3762.9,2.65952478]
[1760210683775,0.798,3763.0,3762.9,0.002]
[1760210684068,1.2551,3763.0,3762.9,0.002]
[1760210684786,0.798,3763.0,3762.9,0.002]
[1760210685483,0.798,3763.0,3762.9,2.65952478]
[1760210685789,0.798,3763.0,3762.9,3.19124271]
[1760210685984,0.798,3763.0,3762.9,0.002]
[1760210686183,0.798,3763.0,3762.9,2.65952478]
[1760210687157,0.798,3763.0,3762.9,3.12370002]
[1760210687357,0.798,3763.0,3762.9,3.25650002]
[1760210687571,0.798,3763.0,3762.9,3.22992478]
[1760210687760,0.798,3763.0,3762.9,3.81867943]
[1760210689157,0.1328,3763.9,3763.8,2.65688931]
[1760210689469,0.001,3764.9,3763.7,2.6569599]
[1760210689666,0.001,3764.9,3764.5,2.65634138]
[1760210689866,0.1328,3764.3,3764.2,2.65660698]
[1760210690462,0.001,3764.9,3764.8,2.65618359]
[1760210691491,0.001,3764.9,3764.8,3.12034542]
[1760210691911,0.001,3764.9,3764.8,3.09378359]
[1760210692505,0.001,3764.9,3764.8,3.12034542]
[1760210692803,0.001,3764.9,3764.8,3.09378359]
[1760210693006,0.001,3764.9,3764.8,3.6687898]
[1760210693535,0.001,3764.9,3764.2,0.53133088]
[1760210693682,0.001,3764.9,3764.8,2.65618359]
[1760210693885,0.001,3764.9,3764.8,2.68274542]
[1760210694321,0.001,3764.9,3764.8,3.09378359]
[1760210694502,0.001,3764.9,3764.8,5.04034542]
[1760210694813,0.001,3764.9,3764.8,5.01378359]
[1760210695020,0.001,3764.9,3764.8,5.78079]
[1760210695714,0.001,3764.9,3764.8,5.34319]
[1760210695917,0.001,3764.9,3764.8,2.65618359]
[1760210697020,0.001,3764.9,3764.8,2.68274542]
[1760210697596,0.001,3764.9,3764.8,3.12034542]
[1760210698133,0.001,3764.9,3764.8,3.09378359]
[1760210698318,0.001,3764.9,3764.8,3.12034542]
[1760210698485,0.001,3764.9,3764.8,3.67144618]
[1760210700298,0.001,3764.9,3764.8,3.69800801]
[1760210700498,0.001,3764.9,3764.8,3.80424618]
[1760210701026,0.001,3764.9,3764.8,3.83080801]
[1760210701230,0.001,3764.9,3764.8,6.35784618]
[1760210701396,0.001,3765.3,3765.2,3.28950141]
[1760210701728,0.001,3765.3,3765.2,6.02261009]
[1760210701901,0.001,3765.3,3765.2,6.59845108]
[1760210702929,0.001,3765.3,3765.2,5.96485108]
[1760210703230,0.001,3765.3,3765.2,2.65590141]
[1760210704008,0.4693,3765.3,3764.9,2.6561029]
[1760210704213,0.4693,3765.3,3764.9,2.65604746]
[1760210704410,0.001,3765.3,3763.7,0.4704]
[1760210704615,0.001,3765.3,3763.0,2.65940515]
[1760210704616,20.68902009,3764.9,3763.2,0.4704]
[1760210704811,20.68902009,3764.9,3763.3,0.57871887]
[1760210705131,0.4683,3765.2,3763.4,0.02657171]
[1760210705439,0.4683,3765.2,3763.9,2.65680488]
[1760210705440,2.65605894,3765.0,3763.9,2.65680488]
[1760210705795,2.65605894,3765.0,3763.6,2.65701298]
[1760210705999,2.65605894,3765.0,3763.3,0.57871887]
[1760210706000,20.68902009,3764.7,3763.0,0.002]
[1760210706450,0.001,3765.3,3763.0,0.002]
[1760210706606,0.001,3765.3,3763.2,0.6336]
[1760210706808,0.001,3765.3,3764.4,2.65646051]
[1760210707001,0.001,3765.3,3764.8,2.6561637]
[1760210707310,0.001,3765.3,3764.8,2.65611406]
[1760210707642,0.001,3765.3,3763.5,0.4704]
[1760210707799,0.4683,3765.2,3763.6,2.6570305]
[1760210708005,2.6561824,3764.9,3763.7,0.31274305]
[1760210708328,2.6561824,3764.9,3763.5,0.4704]
[1760210708329,2.65622649,3764.8,3763.8,2.65688812]
[1760210708530,20.68902009,3764.9,3763.0,0.002]
[1760210708717,0.4683,3764.8,3763.0,0.002]
[1760210708924,3.1244863,3764.8,3763.0,0.002]
[1760210709147,2.65663594,3764.2,3763.0,0.02857454]
[1760210709351,2.65663594,3764.2,3763.1,2.65738354]
[1760210709632,2.65663594,3764.2,3763.2,0.02657312]
[1760210709837,0.4683,3764.4,3763.2,0.02657312]
[1760210710007,23.81343358,3764.9,3763.6,2.65699131]
[1760210710338,23.81343358,3764.9,3763.0,0.4724]
[1760210710339,21.15732009,3764.9,3763.8,2.65688931]
[1760210710502,21.15732009,3764.9,3763.9,0.02656818]
[1760210710701,21.15732009,3764.9,3763.4,0.4704]
[1760210710702,2.65631685,3764.7,3763.4,0.4704]
[1760210710902,2.65631685,3764.7,3763.7,2.65695382]
[1760210711206,21.15732009,3764.9,3762.9,0.4724]
[1760210711412,3.12443745,3764.9,3763.9,2.65675115]
[1760210711614,2.65613745,3764.9,3764.0,0.02656748]
[1760210711817,2.65619115,3764.8,3764.0,0.02656748]
[1760210712033,20.69002009,3765.3,3763.6,0.4704]
[1760210712238,2.65597631,3765.1,3764.1,2.65661531]
[1760210712532,0.001,3765.3,3764.4,2.65642758]
[1760210712734,0.001,3765.3,3765.0,2.65597607]
[1760210712897,0.001,3765.3,3764.8,2.65611372]
[1760210713229,0.001,3765.3,3764.2,2.65660698]
[1760210713429,0.132,3765.1,3764.5,0.1328]
[1760210714332,23.34590678,3765.3,3763.3,2.65722435]
[1760210714558,0.1328,3764.7,3764.1,2.78945567]
[1760210715024,2.65624178,3764.8,3763.9,2.6567501]
[1760210715230,0.1328,3764.5,3763.9,0.1328]
[1760210715430,0.1328,3764.5,3764.4,2.65646583]
[1760210715673,0.001,3765.3,3764.4,2.65646583]
[1760210715674,0.1328,3764.9,3764.4,0.73604658]
[1760210715841,0.1328,3764.9,3764.3,0.1328]
[1760210716040,0.1328,3764.9,3764.4,2.65646583]
[1760210716239,0.1328,3764.9,3764.3,0.1328]
[1760210716646,2.65633012,3764.6,3763.3,0.002]
[1760210716846,0.1328,3764.3,3763.7,2.6569303]
[1760210717055,0.1328,3764.3,3763.7,3.20161229]
[1760210717267,0.001,3765.3,3764.2,2.65660698]
[1760210717268,2.6568412,3765.3,3764.2,2.65660698]
[1760210717583,2.6568412,3765.3,3763.7,1.01508199]
[1760210717584,0.1328,3764.8,3764.4,2.6564651]
[1760210717755,0.1328,3764.8,3764.5,0.02656395]
[1760210717943,0.1328,3764.8,3764.1,0.1328]
[1760210718287,0.1328,3764.8,3764.2,2.6565682]
[1760210718490,21.15732009,3764.8,3762.6,0.002]
[1760210718694,0.1328,3764.3,3763.7,2.78975552]
[1760210718842,0.1328,3764.3,3763.7,0.1328]
[1760210719041,21.15732009,3764.8,3763.0,0.002]
[1760210719042,0.1328,3763.7,3763.0,0.002]
[1760210719253,21.15732009,3764.2,3763.0,0.002]
[1760210719254,0.1328,3763.5,3763.0,0.002]
[1760210719976,2.78991906,3763.5,3763.0,0.002]
[1760210720174,0.4683,3763.4,3763.0,0.002]
[1760210720470,3.1254717,3763.4,3763.0,0.002]
[1760210721047,2.78991909,3763.5,3763.0,0.002]
[1760210721675,2.6571717,3763.4,3763.0,0.002]
[1760210722565,0.1328,3763.5,3763.0,0.002]
[1760210722968,1.92,3764.6,3763.4,0.4704]
[1760210723168,0.1328,3763.9,3763.5,2.68363001]
[1760210723372,0.1328,3763.9,3763.6,2.65700678]
[1760210723556,0.10757444,3767.5,3763.7,0.02656959]
[1760210723557,0.1328,3764.2,3763.7,0.02656959]
[1760210723759,0.1328,3764.5,3764.0,2.6566934]
[1760210724272,0.1328,3764.5,3763.8,0.6032]
[1760210724469,0.1328,3764.5,3764.0,2.6567148]
[1760210724670,0.1328,3764.5,3764.1,2.68317829]
[1760210724873,0.1328,3764.5,3764.4,2.65646583]
[1760210725185,0.001,3765.3,3764.4,0.1315]
[1760210725390,0.001,3765.3,3765.2,2.65590141]
[1760210725855,0.001,3765.3,3765.2,3.15286042]
[1760210726057,0.001,3765.3,3765.2,3.12630141]
[1760210726289,0.001,3765.3,3765.2,3.70453145]
[1760210728192,0.001,3765.3,3765.2,4.36469046]
[1760210728393,0.931,3766.6,3766.5,2.65498473]
[1760210728692,0.931,3766.6,3766.5,3.12538473]
[1760210728877,0.931,3766.6,3766.5,3.70343155]
[1760210729077,0.931,3766.6,3765.9,0.4704]
[1760210729397,2.65512465,3766.4,3765.5,2.65565994]
[1760210729692,0.931,3766.6,3765.1,0.4607]
[1760210729874,0.931,3766.6,3765.2,0.4607]
[1760210730056,0.831,3766.6,3765.7,2.65550123]
[1760210730255,2.65508887,3766.4,3765.2,0.4607]
[1760210730469,2.65508887,3766.4,3765.2,2.65589082]
[1760210730664,2.65508887,3766.4,3765.4,2.65569401]
[1760210730872,1.2622,3766.6,3765.2,0.26558908]
[1760210731090,1.2622,3766.6,3765.8,2.65545951]
[1760210731496,3.91713855,3766.6,3765.7,2.65554129]
[1760210731794,3.91713855,3766.6,3765.8,2.6554707]
[1760210731973,3.91713855,3766.6,3765.5,2.65568119]
[1760210731974,2.65500095,3766.5,3765.7,2.65553663]
[1760210732290,1.2622,3766.6,3765.6,2.65556253]
[1760210732589,0.2252,3765.7,3764.1,2.65667755]
[1760210732790,1.92,3766.2,3765.2,2.6558831]
[1760210732990,1.92,3766.2,3765.3,2.68238229]
[1760210732991,4.57519988,3766.2,3765.3,2.68238229]
[1760210733288,1.92,3766.2,3765.3,0.0265583]
[1760210733501,1.92,3766.7,3765.9,2.65537091]
[1760210733683,1.92,3766.5,3765.8,2.65542253]
[1760210734196,0.831,3766.6,3766.2,2.65519394]
[1760210734403,0.831,3766.6,3766.3,0.02655125]
[1760210734691,0.001,3766.2,3765.7,2.6554829]
[1760210735193,0.001,3766.2,3765.9,0.132]
[1760210735500,0.001,3766.2,3765.0,0.4607]
[1760210735501,0.132,3765.9,3765.3,0.132]
[1760210736096,20.82788711,3765.8,3764.3,2.6565364]
[1760210736297,0.1328,3765.1,3764.6,2.65630118]
[1760210736497,0.1328,3765.1,3764.4,0.1328]
[1760210736498,2.65592186,3765.2,3764.4,2.65643158]
[1760210736798,0.1328,3764.6,3764.2,2.65660479]
[1760210737030,0.1328,3764.6,3764.0,2.65673572]
[1760210737299,0.1328,3764.6,3763.9,0.1328]
[1760210737300,0.564,3764.6,3763.9,0.1328]
[1760210737600,0.564,3764.6,3764.0,2.65674764]
[1760210737893,0.564,3764.6,3763.9,2.78961247]
[1760210738094,0.564,3764.6,3763.9,3.33426767]
[1760210738301,0.1328,3764.6,3764.1,2.65667289]
[1760210738997,0.1328,3764.6,3764.2,0.02656606]
[1760210739192,0.1328,3764.6,3764.2,2.68317251]
[1760210739967,0.1328,3764.6,3764.2,2.65660645]
[1760210740198,0.1328,3764.6,3764.3,2.68308904]
[1760210740398,0.1328,3764.6,3763.9,2.78956434]
[1760210740600,0.564,3764.6,3763.9,0.1328]
[1760210740808,0.1328,3763.9,3763.0,0.002]
[1760210741009,2.65702523,3763.7,3763.0,0.002]
[1760210741190,1.3931,3763.8,3763.0,0.002]
[1760210741389,2.6571717,3763.4,3763.0,0.002]
[1760210741588,0.1328,3763.5,3763.0,0.002]
[1760210743106,0.93,3763.8,3763.4,2.65710116]
[1760210743276,1.0628,3763.8,3763.4,2.65710116]
[1760210744212,0.93,3763.8,3763.7,2.6569599]
[1760210744536,0.93,3763.8,3763.4,0.27919012]
[1760210744711,1.3931,3763.8,3763.3,2.79203689]
[1760210744896,0.93,3763.8,3763.4,2.65711797]
[1760210745098,0.4631,3763.7,3763.3,0.002]
[1760210745500,0.4631,3763.6,3763.3,0.002]
[1760210745816,0.93,3763.8,3763.3,0.002]
[1760210746311,0.93,3763.8,3763.3,2.65921769]
[1760210746509,0.93,3763.8,3763.3,0.002]
[1760210746710,0.93,3763.8,3763.7,2.6569599]
[1760210747210,0.931,3764.2,3763.7,1.01669316]
[1760210747418,0.931,3764.2,3764.1,2.65667755]
[1760210748636,0.931,3764.2,3764.0,2.78953572]
[1760210748928,0.931,3764.2,3763.8,2.65688931]
[1760210749137,0.931,3764.2,3763.8,3.08598931]
[1760210749338,0.931,3764.2,3763.3,0.002]
[1760210749339,0.931,3764.2,3763.9,0.32187893]
[1760210749512,0.931,3764.2,3763.8,2.78968125]
[1760210749696,1.3941,3764.2,3763.3,0.002]
[1760210749900,0.1328,3764.1,3763.5,2.789898]
[1760210750100,0.1328,3764.1,3763.8,2.6568765]
[1760210750524,0.1328,3764.1,3763.9,2.65681646]
[1760210750720,0.1328,3764.1,3763.5,2.78983731]
[1760210750895,0.1328,3764.1,3763.6,2.65703026]
[1760210751097,0.1328,3763.7,3763.3,0.002]
[1760210751932,0.4631,3763.6,3763.3,0.002]
[1760210752118,0.1328,3763.5,3763.3,0.002]
[1760210752714,0.1328,3763.5,3763.3,0.69743723]
[1760210752902,0.1328,3763.9,3763.4,0.45567171]
[1760210753106,1.0638,3764.2,3763.5,2.65703507]
[1760210753421,1.0638,3764.2,3763.4,0.4291]
[1760210753422,0.1328,3764.0,3763.9,2.65681872]
[1760210753621,0.931,3764.2,3764.1,2.65667755]
[1760210754507,0.931,3764.2,3764.1,3.21857755]
[1760210755228,0.931,3765.5,3764.2,2.65660698]
[1760210755428,0.931,3765.5,3765.4,2.65576034]
[1760210755849,0.931,3765.5,3765.4,2.78776034]
[1760210757032,0.931,3765.5,3765.4,0.132]
[1760210757220,1.063,3765.5,3765.0,2.65598073]
[1760210757539,0.4631,3765.4,3764.8,0.1328]
[1760210758209,0.931,3765.5,3764.4,2.65646583]
[1760210758407,0.931,3765.5,3764.5,0.77737053]
[1760210758738,0.931,3765.5,3765.4,2.65576034]
[1760210760936,0.931,3765.5,3765.3,2.65581899]
[1760210761563,0.931,3765.5,3765.4,2.65576034]
[1760210761776,0.931,3765.6,3763.7,0.6336]
[1760210761916,0.931,3765.6,3765.5,2.65568981]
[1760210762259,0.931,3765.6,3765.5,5.57539395]
[1760210762462,0.001,3766.2,3766.1,2.65526672]
[1760210762669,0.001,3766.2,3766.1,4.60181938]
[1760210762965,0.001,3766.2,3766.1,4.65171938]
[1760210763529,0.001,3766.2,3766.1,4.57526672]
[1760210764243,0.001,3766.2,3766.1,4.60181938]
[1760210764439,0.001,3766.2,3766.1,5.19875886]
[1760210764640,0.001,3766.2,3766.1,5.1722062]
[1760210765246,0.001,3766.2,3766.1,3.3021062]
[1760210765445,0.001,3766.2,3766.1,3.32865886]
[1760210766251,0.001,3766.2,3766.1,3.96225886]
[1760210766850,0.001,3767.5,3766.1,3.9357062]
[1760210767089,0.001,3767.5,3767.3,4.57442093]
[1760210767272,0.001,3767.5,3767.3,4.60096513]
[1760210767567,1e-08,3767.7,3767.6,5.20780957]
[1760210767939,1e-08,3767.7,3767.6,4.62410957]
[1760210768338,1e-08,3767.7,3767.6,4.65065166]
[1760210768541,1e-08,3767.7,3767.6,5.75205188]
[1760210768973,1e-08,3767.7,3767.6,5.70215188]
[1760210769159,1e-08,3767.7,3767.6,6.25365188]
[1760210770855,0.001,3769.1,3768.6,2.65350528]
[1760210771578,0.001,3769.1,3768.6,2.72994033]
[1760210771759,0.001,3769.1,3768.6,3.87535967]
[1760210771959,0.001,3769.1,3768.6,5.82189472]
[1760210772139,0.001,3769.1,3769.0,3.28682366]
[1760210772341,0.001,3769.7,3769.6,5.20640135]
[1760210772541,0.001,3772.2,3769.6,2.5536]
[1760210772769,0.001,3772.2,3770.5,2.65213311]
[1760210772956,0.001,3772.2,3771.6,2.65133395]
[1760210773273,0.001,3772.2,3771.4,2.65147845]
[1760210773442,0.001,3772.2,3771.7,2.65132433]
[1760210773848,0.001,3772.2,3771.7,2.67783757]
[1760210774140,0.001,3772.2,3771.7,3.14235791]
[1760210774358,0.001,3772.2,3771.7,3.11584467]
[1760210774776,0.001,3772.2,3771.7,3.14235791]
[1760210775178,0.001,3772.2,3771.7,3.74944467]
[1760210775378,0.001,3772.2,3771.7,5.66944467]
[1760210776978,0.4428,3774.4,3771.8,0.6336]
[1760210777290,0.4428,3774.4,3771.7,3.01812034]
[1760210777291,0.4428,3774.4,3772.1,0.6336]
[1760210777446,20.13646687,3774.6,3773.7,2.64991301]
[1760210777647,20.13646687,3774.6,3773.1,2.65027177]
[1760210777849,1.92,3774.5,3774.0,2.64968764]
[1760210778152,1.92,3774.5,3773.0,0.0469]
[1760210778405,0.6734,3775.6,3773.2,2.65027032]
[1760210778573,0.6734,3775.6,3773.0,0.31664212]
[1760210778574,20.13646687,3774.8,3772.4,1.92]
[1760210778774,20.13646687,3774.8,3772.3,2.65085908]
[1760210778775,5.01202512,3774.7,3773.6,2.64998875]
[1760210779017,0.4428,3774.6,3773.4,2.65006494]
[1760210779174,0.132,3773.7,3773.4,2.65006494]
[1760210779381,0.132,3773.7,3773.6,2.6499894]
[1760210780106,0.4428,3774.6,3773.6,2.6499894]
[1760210780273,0.2306,3773.7,3771.9,0.0469]
[1760210780613,0.6734,3773.7,3772.0,2.65111346]
[1760210780816,0.4428,3774.3,3772.2,0.6336]
[1760210781014,20.13646687,3774.5,3773.9,2.64974711]
[1760210781215,20.13646687,3774.5,3774.0,0.02649708]
[1760210781523,20.5979871,3775.1,3774.6,2.64928047]
[1760210781676,20.5979871,3775.7,3774.7,0.02649217]
[1760210781874,20.5979871,3775.1,3774.6,2.64924667]
[1760210782161,20.5979871,3775.1,3775.0,2.64900662]
[1760210782405,20.5979871,3775.5,3773.9,0.0469]
[1760210782610,20.5979871,3775.5,3775.1,2.64892405]
[1760210783213,20.5979871,3775.5,3775.3,2.64873324]
[1760210783392,20.5979871,3775.5,3775.2,2.64886628]
[1760210783585,0.4428,3775.4,3774.0,0.31657362]
[1760210783820,20.5979871,3775.5,3775.3,2.64872918]
[1760210783986,20.5979871,3775.5,3775.1,2.64888432]
[1760210784188,20.5979871,3776.1,3773.1,2.65033636]
[1760210784484,20.5979871,3776.1,3774.4,0.0469]
[1760210784698,20.5979871,3776.1,3776.0,2.64830508]
[1760210784903,20.8285871,3776.7,3776.1,2.64823495]
[1760210785280,20.5979871,3776.7,3775.9,2.64837522]
[1760210785585,1.921,3776.6,3774.5,0.02649357]
[1760210785785,1.921,3776.6,3776.0,2.64829609]
[1760210786123,0.001,3776.6,3776.1,2.64823495]
[1760210787378,0.001,3776.6,3776.1,3.177894]
[1760210787709,0.001,3776.6,3776.1,2.64823495]
[1760210787909,0.001,3776.6,3776.1,2.69513495]
[1760210788408,0.001,3776.6,3776.1,3.32873495]
[1760210788709,0.001,3776.6,3776.5,5.20155445]
[1760210788908,0.001,3776.6,3776.5,5.98651503]
[1760210789207,0.001,3776.6,3776.5,6.03241503]
[1760210789764,0.001,3776.6,3776.5,2.64795445]
[1760210790414,0.001,3776.6,3776.5,2.77995445]
[1760210790730,0.001,3776.6,3776.5,2.72033399]
[1760210791102,0.001,3776.6,3776.5,3.35393399]
[1760210791302,0.001,3776.6,3776.5,3.32745445]
[1760210791608,0.001,3776.6,3776.5,4.11700503]
[1760210792410,1e-08,3777.1,3777.0,3.28120391]
[1760210792647,1e-08,3777.1,3777.0,3.32710391]
[1760210792864,1e-08,3777.1,3777.0,5.24710391]
[1760210794727,1e-08,3777.1,3777.0,4.56760391]
[1760210794930,1e-08,3777.1,3777.0,2.64760391]
[1760210795547,1e-08,3777.1,3777.0,2.67407994]
[1760210796009,1e-08,3777.1,3777.0,3.39826116]
[1760210796213,1e-08,3777.1,3777.0,4.05128513]
[1760210796942,1e-08,3777.1,3777.0,3.37178513]
[1760210797356,1e-08,3777.1,3777.0,3.44416116]
[1760210797539,1e-08,3777.1,3777.0,4.05128513]
[1760210798052,1e-08,3777.1,3777.0,3.37178513]
[1760210798425,1e-08,3777.1,3777.0,3.41768513]
[1760210798625,1e-08,3777.1,3777.0,4.05128513]
[1760210799746,1e-08,3777.1,3777.0,3.41768513]
[1760210800952,1e-08,3777.1,3777.0,3.54968513]
[1760210801530,1e-08,3777.1,3777.0,4.20976116]
[1760210801862,1e-08,3777.1,3771.8,0.4537]
[1760210801863,1.92,3777.0,3771.8,0.4537]
[1760210802153,1.92,3776.3,3775.3,2.64876816]
[1760210802339,0.4355,3776.2,3774.3,1.92]
[1760210802545,0.4355,3776.2,3774.2,2.64956812]
[1760210802546,0.02647603,3776.1,3774.2,2.64956812]
[1760210802724,0.02647603,3776.1,3775.4,2.64870163]
[1760210802922,0.02647603,3776.1,3774.3,0.53659681]
[1760210803148,0.02647603,3776.1,3774.5,2.64935753]
[1760210803347,0.02647603,3776.1,3775.4,2.64866732]
[1760210803660,2.87658509,3775.5,3773.9,2.64977874]
[1760210803867,20.5979871,3775.0,3774.0,0.02649708]
[1760210804038,20.5979871,3775.0,3773.6,2.64992583]
[1760210804224,20.5979871,3775.0,3773.4,0.0724]
[1760210804225,0.02647603,3774.9,3774.2,2.64952484]
[1760210804561,0.02647603,3774.9,3773.4,0.0724]
[1760210804562,0.02647603,3774.9,3774.6,2.64928219]
[1760210804761,20.5979871,3775.0,3773.8,2.64980891]
[1760210804972,20.5979871,3775.0,3774.6,2.64927446]
[1760210805145,20.5979871,3775.0,3774.7,2.64920793]
[1760210805344,0.4355,3774.9,3774.7,2.64920793]
[1760210805662,0.46197603,3774.9,3773.9,0.26498089]
[1760210805870,20.5979871,3775.0,3773.5,2.65005962]
[1760210806053,0.4355,3775.4,3773.6,2.67648929]
[1760210806261,0.02647603,3775.3,3773.7,0.0724]
[1760210806438,0.2279,3775.9,3775.4,2.64872596]
[1760210806781,0.02647603,3776.0,3775.4,2.64869605]
[1760210806981,0.02647603,3776.0,3774.7,0.6336]
[1760210807148,0.4355,3776.5,3775.9,2.64834263]
[1760210807351,0.02647603,3776.4,3774.9,2.64907679]
[1760210807666,20.5979871,3776.8,3776.1,2.64816652]
[1760210807667,0.02647603,3776.7,3776.1,2.64816652]
[1760210807869,1.94647603,3776.7,3776.3,2.64806406]
[1760210808165,20.5979871,3776.8,3776.4,2.64796176]
[1760210808367,0.4365,3777.1,3775.4,0.0724]
[1760210808547,0.02647603,3777.0,3775.4,3.24858398]
[1760210808749,0.02647603,3777.0,3776.6,2.64786889]
[1760210808952,0.001,3777.1,3776.4,0.02648024]
[1760210809145,0.02647603,3777.0,3775.5,0.6336]
[1760210809346,0.02647603,3777.0,3774.5,2.64930445]
[1760210809550,0.02647603,3777.0,3772.9,2.65047395]
[1760210809551,1.92,3776.6,3775.7,2.64844679]
[1760210809759,0.02647603,3776.5,3775.7,2.64844679]
[1760210810338,0.02647603,3776.5,3776.1,2.64817435]
[1760210810538,2.38197603,3776.6,3776.0,2.64826875]
[1760210810738,2.38197603,3776.6,3775.5,0.02648655]
[1760210810979,0.001,3777.1,3775.5,0.29400698]
[1760210811137,0.02747603,3777.1,3776.4,2.64802457]
[1760210811475,0.001,3777.1,3776.7,2.64781108]
[1760210811767,0.001,3777.1,3776.5,0.02647954]
[1760210811967,0.001,3777.1,3777.0,2.64760391]
[1760210812348,0.001,3777.1,3777.0,3.17713572]
[1760210812552,0.001,3777.1,3777.0,5.16953572]
[1760210812773,0.001,3777.1,3777.0,5.80313572]
[1760210814065,0.001,3777.1,3777.0,5.16953572]
[1760210814268,0.001,3777.1,3777.0,2.64760391]
[1760210814868,0.001,3777.1,3776.1,0.0724]
[1760210815188,0.001,3777.1,3777.0,2.64760391]
[1760210815504,0.001,3777.1,3777.0,2.72000391]
[1760210815667,0.001,3777.1,3777.0,2.64760391]
[1760210815865,0.001,3777.1,3777.0,3.20361029]
[1760210816087,0.001,3777.1,3777.0,3.27601029]
[1760210816590,0.001,3777.1,3775.6,2.64857302]
[1760210816591,0.001,3777.1,3775.3,0.0724]
[1760210816795,0.001,3777.1,3773.1,3.23565074]
[1760210816796,0.001,3777.1,3775.5,0.33992043]
[1760210816966,0.001,3777.1,3775.6,0.09888585]
[1760210817171,0.001,3777.1,3777.0,2.64760391]
[1760210818059,0.001,3777.1,3777.0,3.38007994]
[1760210818260,0.001,3777.1,3777.0,5.30007994]
[1760210818461,0.001,3777.1,3777.0,5.27360391]
[1760210818785,0.001,3777.1,3777.0,6.06573421]
[1760210820009,0.02647603,3779.6,3779.0,2.64620269]
[1760210820177,2.1506,3780.0,3779.0,2.64620269]
[1760210820178,0.928,3779.1,3779.0,2.64620269]
[1760210821204,0.02647603,3780.3,3780.2,2.64536267]
[1760210821368,0.927,3780.8,3780.7,2.64501282]
[1760210821571,0.927,3780.8,3780.6,2.64508001]
[1760210821808,0.4576,3781.6,3780.6,2.64504232]
[1760210822071,0.02647603,3781.5,3779.9,0.0726]
[1760210822396,1.92,3781.1,3779.5,2.64578558]
[1760210822600,0.02647603,3781.0,3779.6,0.0726]
[1760210822786,20.5979871,3781.2,3779.0,2.71879907]
[1760210822787,2.64500468,3780.8,3779.0,2.71879907]
[1760210823111,1.92,3780.5,3779.5,2.64578942]
[1760210823294,2.64445497,3781.5,3780.6,2.64508121]
[1760210823559,0.02647603,3781.4,3780.7,2.64498031]
[1760210823800,0.02647603,3781.5,3779.7,0.6336]